fUSD/lending_fUSD_20260512
["ID","MTS","AMOUNT","RATE_DAILY","PERIOD"]
[422110935,1778577110000,-500.0,0.00041361,120]
[422110934,1778577110000,-158.27617212,0.00041361,120]
[422110937,1778577110000,-262.27670534,0.00041361,120]
[422110936,1778577110000,-523.50311283,0.00041361,120]
[422110928,1778577110000,-500.0,0.00041361,120]
[422110941,1778577110000,-559.82489008,0.00041361,120]
[422110940,1778577110000,-500.0,0.00041361,120]
[422110939,1778577110000,-500.0,0.00041361,120]
[422110949,1778577110000,-500.0,0.00041361,120]
[422110944,1778577110000,-265.0696419,0.00041361,120]
[422110946,1778577110000,-500.0,0.00041361,120]
[422110950,1778577110000,-500.0,0.00041361,120]
[422110945,1778577110000,-500.0,0.00041361,120]
[422110951,1778577110000,-221.54212157,0.00041361,120]
[422110952,1778577110000,-313.63580416,0.00041361,120]
[422110953,1778577110000,-500.0,0.00041361,120]
[422110948,1778577110000,-500.0,0.00041361,120]
[422110895,1778577110000,-316.53549724,0.00041361,120]
[422110938,1778577110000,-173.87307324,0.00041361,120]
[422110919,1778577110000,-504.99,0.00041361,120]
[422110947,1778577110000,-500.0,0.00041361,120]
[422110926,1778577110000,-419.51075063,0.00041361,120]
[422110920,1778577110000,-1258.75,0.00041361,120]
[422110905,1778577110000,-1258.75,0.00041361,120]
[422110898,1778577110000,-1258.75,0.00041361,120]
[422110901,1778577110000,-500.0,0.00041361,120]
[422110899,1778577110000,-504.99,0.00041361,120]
[422110903,1778577110000,-500.0,0.00041361,120]
[422110902,1778577110000,-1258.75,0.00041361,120]
[422110904,1778577110000,-504.99,0.00041361,120]
[422110907,1778577110000,-504.99,0.00041361,120]
[422110917,1778577110000,-504.99,0.00041361,120]
[422110908,1778577110000,-1258.75,0.00041361,120]
[422110913,1778577110000,-504.99,0.00041361,120]
[422110906,1778577110000,-534.94583577,0.00041361,120]
[422110900,1778577110000,-1258.75,0.00041361,120]
[422110912,1778577110000,-1258.75,0.00041361,120]
[422110909,1778577110000,-504.99,0.00041361,120]
[422110924,1778577110000,-500.0,0.00041361,120]
[422110927,1778577110000,-504.99,0.00041361,120]
[422110929,1778577110000,-504.99,0.00041361,120]
[422110918,1778577110000,-1258.75,0.00041361,120]
[422110930,1778577110000,-500.0,0.00041361,120]
[422110914,1778577110000,-500.0,0.00041361,120]
[422110910,1778577110000,-1258.75,0.00041361,120]
[422110916,1778577110000,-614.40195034,0.00041361,120]
[422110915,1778577110000,-1258.75,0.00041361,120]
[422110911,1778577110000,-504.99,0.00041361,120]
[422110921,1778577110000,-504.99,0.00041361,120]
[422110990,1778577111000,-303.16936156,0.00041361,120]
[422110979,1778577111000,-217.91931108,0.00041361,120]
[422110983,1778577111000,-500.0,0.00041361,120]
[422110978,1778577111000,-500.0,0.00041361,120]
[422110985,1778577111000,-229.59902217,0.00041361,120]
[422110987,1778577111000,-239.71464693,0.00041361,120]
[422110982,1778577111000,-207.76725106,0.00041361,120]
[422110989,1778577111000,-500.0,0.00041361,120]
[422110988,1778577111000,-500.0,0.00041361,120]
[422110991,1778577111000,-500.0,0.00041361,120]
[422110984,1778577111000,-500.0,0.00041361,120]
[422110995,1778577111000,-591.94878909,0.00041361,120]
[422110993,1778577111000,-500.0,0.00041361,120]
[422110997,1778577111000,-277.14054995,0.00041361,120]
[422110994,1778577111000,-271.63501044,0.00041361,120]
[422110998,1778577111000,-206.68337512,0.00041361,120]
[422110996,1778577111000,-500.0,0.00041361,120]
[422110999,1778577111000,-196.50422685,0.00041361,120]
[422111001,1778577111000,-500.0,0.00041361,120]
[422111002,1778577111000,-500.0,0.00041361,120]
[422110986,1778577111000,-150.44690089,0.00041361,120]
[422111003,1778577111000,-500.0,0.00041361,120]
[422110992,1778577111000,-210.22193736,0.00041361,120]
[422110980,1778577111000,-500.0,0.00041361,120]
[422110958,1778577111000,-217.35446567,0.00041361,120]
[422110977,1778577111000,-185.37733518,0.00041361,120]
[422111005,1778577111000,-500.0,0.00041361,120]
[422110954,1778577111000,-500.0,0.00041361,120]
[422110955,1778577111000,-500.0,0.00041361,120]
[422110956,1778577111000,-500.0,0.00041361,120]
[422110963,1778577111000,-500.0,0.00041361,120]
[422110965,1778577111000,-500.0,0.00041361,120]
[422110960,1778577111000,-245.43452618,0.00041361,120]
[422110964,1778577111000,-595.3194891,0.00041361,120]
[422110959,1778577111000,-500.0,0.00041361,120]
[422110961,1778577111000,-514.1091452,0.00041361,120]
[422110981,1778577111000,-322.63765759,0.00041361,120]
[422110957,1778577111000,-520.58925709,0.00041361,120]
[422110966,1778577111000,-500.0,0.00041361,120]
[422110971,1778577111000,-236.88552851,0.00041361,120]
[422110970,1778577111000,-365.19982333,0.00041361,120]
[422110968,1778577111000,-500.0,0.00041361,120]
[422110976,1778577111000,-224.47614207,0.00041361,120]
[422110972,1778577111000,-418.42591805,0.00041361,120]
[422110969,1778577111000,-578.1929549,0.00041361,120]
[422110974,1778577111000,-613.25289103,0.00041361,120]
[422110973,1778577111000,-262.68394628,0.00041361,120]
[422110975,1778577111000,-500.0,0.00041361,120]
[422110967,1778577111000,-500.0,0.00041361,120]
[422111007,1778577111000,-500.0,0.00041361,120]
[422110962,1778577111000,-156.13684089,0.00041361,120]
[422111004,1778577111000,-630.43223274,0.00041361,120]
[422111036,1778577111000,-813.61,0.00041361,120]
[422111034,1778577111000,-813.61,0.00041361,120]
[422111026,1778577111000,-813.61,0.00041361,120]
[422111038,1778577111000,-813.61,0.00041361,120]
[422111047,1778577111000,-500.0,0.00041361,120]
[422111037,1778577111000,-500.0,0.00041361,120]
[422111041,1778577111000,-813.76551592,0.00041361,120]
[422111039,1778577111000,-444.54585534,0.00041361,120]
[422111040,1778577111000,-813.61,0.00041361,120]
[422111048,1778577111000,-605.01937185,0.00041361,120]
[422111045,1778577111000,-525.0386184,0.00041361,120]
[422111046,1778577111000,-500.0,0.00041361,120]
[422111043,1778577111000,-231.34911664,0.00041361,120]
[422111042,1778577111000,-347.61650521,0.00041361,120]
[422111044,1778577111000,-620.56473896,0.00041361,120]
[422111049,1778577111000,-500.0,0.00041361,120]
[422111050,1778577111000,-500.0,0.00041361,120]
[422111051,1778577111000,-500.0,0.00041361,120]
[422111054,1778577111000,-500.0,0.00041361,120]
[422111053,1778577111000,-303.13676877,0.00041361,120]
[422111055,1778577111000,-500.0,0.00041361,120]
[422111000,1778577111000,-500.0,0.00041361,120]
[422111056,1778577111000,-377.55839589,0.00041361,120]
[422111035,1778577111000,-813.61,0.00041361,120]
[422111032,1778577111000,-813.61,0.00041361,120]
[422111052,1778577111000,-500.0,0.00041361,120]
[422111033,1778577111000,-813.61,0.00041361,120]
[422111030,1778577111000,-239.37955494,0.00041361,120]
[422111009,1778577111000,-500.0,0.00041361,120]
[422111011,1778577111000,-516.56917895,0.00041361,120]
[422111008,1778577111000,-500.0,0.00041361,120]
[422111010,1778577111000,-258.98645835,0.00041361,120]
[422111024,1778577111000,-813.61,0.00041361,120]
[422111013,1778577111000,-813.61,0.00041361,120]
[422111023,1778577111000,-813.61,0.00041361,120]
[422111012,1778577111000,-813.61,0.00041361,120]
[422111015,1778577111000,-813.61,0.00041361,120]
[422111021,1778577111000,-333.79169599,0.00041361,120]
[422111006,1778577111000,-500.0,0.00041361,120]
[422111018,1778577111000,-519.84377268,0.00041361,120]
[422111019,1778577111000,-813.61,0.00041361,120]
[422111017,1778577111000,-813.61,0.00041361,120]
[422111016,1778577111000,-813.61,0.00041361,120]
[422111014,1778577111000,-813.61,0.00041361,120]
[422111022,1778577111000,-813.61,0.00041361,120]
[422111025,1778577111000,-590.51711539,0.00041361,120]
[422111028,1778577111000,-813.61,0.00041361,120]
[422111027,1778577111000,-813.61,0.00041361,120]
[422111029,1778577111000,-813.61,0.00041361,120]
[422111031,1778577111000,-813.61,0.00041361,120]
[422111020,1778577111000,-813.61,0.00041361,120]
[422111091,1778577112000,-500.0,0.00041361,120]
[422111083,1778577112000,-177.16783131,0.00041361,120]
[422111085,1778577112000,-601.78045755,0.00041361,120]
[422111084,1778577112000,-500.0,0.00041361,120]
[422111087,1778577112000,-514.69944813,0.00041361,120]
[422111090,1778577112000,-500.0,0.00041361,120]
[422111089,1778577112000,-410.26121349,0.00041361,120]
[422111088,1778577112000,-500.0,0.00041361,120]
[422111086,1778577112000,-159.84967406,0.00041361,120]
[422111095,1778577112000,-531.37862894,0.00041361,120]
[422111100,1778577112000,-507.5480774,0.00041361,120]
[422111094,1778577112000,-500.0,0.00041361,120]
[422111092,1778577112000,-500.0,0.00041361,120]
[422111097,1778577112000,-500.0,0.00041361,120]
[422111096,1778577112000,-525.68761215,0.00041361,120]
[422111098,1778577112000,-171.79684928,0.00041361,120]
[422111102,1778577112000,-500.0,0.00041361,120]
[422111101,1778577112000,-411.63846145,0.00041361,120]
[422111099,1778577112000,-207.85634471,0.00041361,120]
[422111104,1778577112000,-473.35379934,0.00041361,120]
[422111082,1778577112000,-369.4523761,0.00041361,120]
[422111093,1778577112000,-500.0,0.00041361,120]
[422111080,1778577112000,-288.75,0.00041361,120]
[422111066,1778577112000,-500.0,0.00041361,120]
[422111079,1778577112000,-335.00764155,0.00041361,120]
[422111060,1778577112000,-417.72455242,0.00041361,120]
[422111057,1778577112000,-500.0,0.00041361,120]
[422111061,1778577112000,-500.0,0.00041361,120]
[422111059,1778577112000,-547.78196513,0.00041361,120]
[422111058,1778577112000,-500.0,0.00041361,120]
[422111063,1778577112000,-1455.49,0.00041361,120]
[422111071,1778577112000,-326.10352923,0.00041361,120]
[422111065,1778577112000,-263.24454951,0.00041361,120]
[422111062,1778577112000,-219.89138485,0.00041361,120]
[422111068,1778577112000,-400.82691522,0.00041361,120]
[422111064,1778577112000,-500.0,0.00041361,120]
[422111069,1778577112000,-500.0,0.00041361,120]
[422111067,1778577112000,-391.7031038,0.00041361,120]
[422111070,1778577112000,-542.25867098,0.00041361,120]
[422111073,1778577112000,-327.68715089,0.00041361,120]
[422111077,1778577112000,-500.0,0.00041361,120]
[422111072,1778577112000,-500.0,0.00041361,120]
[422111074,1778577112000,-200.13318482,0.00041361,120]
[422111076,1778577112000,-500.0,0.00041361,120]
[422111075,1778577112000,-504.49481388,0.00041361,120]
[422111078,1778577112000,-366.64906192,0.00041361,120]
[422111081,1778577112000,-252.52798618,0.00041361,120]
[422111103,1778577112000,-500.0,0.00041361,120]
[422111111,1778577112000,-500.0,0.00041361,120]
[422111113,1778577112000,-500.0,0.00041361,120]
[422111126,1778577112000,-170.40736934,0.00041361,120]
[422111133,1778577112000,-500.0,0.00041361,120]
[422111130,1778577112000,-500.0,0.00041361,120]
[422111145,1778577112000,-531.83057446,0.00041361,120]
[422111146,1778577112000,-532.99873319,0.00041361,120]
[422111147,1778577112000,-533.91087314,0.00041361,120]
[422111138,1778577112000,-204.25372956,0.00041361,120]
[422111137,1778577112000,-500.0,0.00041361,120]
[422111140,1778577112000,-500.0,0.00041361,120]
[422111141,1778577112000,-500.0,0.00041361,120]
[422111139,1778577112000,-500.0,0.00041361,120]
[422111143,1778577112000,-500.0,0.00041361,120]
[422111144,1778577112000,-500.0,0.00041361,120]
[422111149,1778577112000,-500.0,0.00041361,120]
[422111148,1778577112000,-500.0,0.00041361,120]
[422111154,1778577112000,-241.67075121,0.00041361,120]
[422111153,1778577112000,-500.0,0.00041361,120]
[422111150,1778577112000,-500.0,0.00041361,120]
[422111152,1778577112000,-464.40208944,0.00041361,120]
[422111151,1778577112000,-157.56606784,0.00041361,120]
[422111112,1778577112000,-445.23624516,0.00041361,120]
[422111127,1778577112000,-500.0,0.00041361,120]
[422111136,1778577112000,-500.0,0.00041361,120]
[422111142,1778577112000,-500.0,0.00041361,120]
[422111129,1778577112000,-500.0,0.00041361,120]
[422111105,1778577112000,-320.08939561,0.00041361,120]
[422111135,1778577112000,-500.0,0.00041361,120]
[422111106,1778577112000,-536.37915948,0.00041361,120]
[422111108,1778577112000,-300.77212414,0.00041361,120]
[422111107,1778577112000,-217.35787025,0.00041361,120]
[422111110,1778577112000,-540.26782302,0.00041361,120]
[422111109,1778577112000,-388.65540068,0.00041361,120]
[422111115,1778577112000,-486.15454283,0.00041361,120]
[422111118,1778577112000,-500.0,0.00041361,120]
[422111119,1778577112000,-273.46105962,0.00041361,120]
[422111117,1778577112000,-500.0,0.00041361,120]
[422111114,1778577112000,-500.0,0.00041361,120]
[422111120,1778577112000,-206.1351236,0.00041361,120]
[422111132,1778577112000,-529.44144298,0.00041361,120]
[422111131,1778577112000,-500.0,0.00041361,120]
[422111134,1778577112000,-500.0,0.00041361,120]
[422111125,1778577112000,-576.8353539,0.00041361,120]
[422111124,1778577112000,-500.0,0.00041361,120]
[422111128,1778577112000,-500.0,0.00041361,120]
[422111123,1778577112000,-268.93015572,0.00041361,120]
[422111121,1778577112000,-500.0,0.00041361,120]
[422111116,1778577112000,-508.94458826,0.00041361,120]
[422111122,1778577112000,-500.0,0.00041361,120]
[422111202,1778577113000,-230.43370786,0.00041361,120]
[422111187,1778577113000,-500.0,0.00041361,120]
[422111189,1778577113000,-555.3207136,0.00041361,120]
[422111182,1778577113000,-500.0,0.00041361,120]
[422111183,1778577113000,-500.0,0.00041361,120]
[422111184,1778577113000,-317.85448172,0.00041361,120]
[422111185,1778577113000,-183.45341823,0.00041361,120]
[422111186,1778577113000,-500.0,0.00041361,120]
[422111188,1778577113000,-500.0,0.00041361,120]
[422111192,1778577113000,-500.0,0.00041361,120]
[422111195,1778577113000,-500.0,0.00041361,120]
[422111200,1778577113000,-331.1,0.00041361,120]
[422111211,1778577113000,-524.99836126,0.00041361,120]
[422111203,1778577113000,-500.0,0.00041361,120]
[422111194,1778577113000,-395.10553336,0.00041361,120]
[422111199,1778577113000,-544.02090468,0.00041361,120]
[422111201,1778577113000,-208.24036516,0.00041361,120]
[422111212,1778577113000,-598.15182214,0.00041361,120]
[422111193,1778577113000,-567.24645217,0.00041361,120]
[422111197,1778577113000,-500.0,0.00041361,120]
[422111213,1778577113000,-500.0,0.00041361,120]
[422111215,1778577113000,-277.77120332,0.00041361,120]
[422111214,1778577113000,-334.21637845,0.00041361,120]
[422111191,1778577113000,-152.47478492,0.00041361,120]
[422111196,1778577113000,-500.0,0.00041361,120]
[422111190,1778577113000,-500.0,0.00041361,120]
[422111155,1778577113000,-193.05819419,0.00041361,120]
[422111177,1778577113000,-500.0,0.00041361,120]
[422111156,1778577113000,-529.58223446,0.00041361,120]
[422111158,1778577113000,-194.45144937,0.00041361,120]
[422111157,1778577113000,-500.0,0.00041361,120]
[422111168,1778577113000,-500.0,0.00041361,120]
[422111160,1778577113000,-500.0,0.00041361,120]
[422111159,1778577113000,-500.0,0.00041361,120]
[422111169,1778577113000,-500.0,0.00041361,120]
[422111162,1778577113000,-508.53964226,0.00041361,120]
[422111161,1778577113000,-506.35953366,0.00041361,120]
[422111167,1778577113000,-500.0,0.00041361,120]
[422111165,1778577113000,-500.0,0.00041361,120]
[422111181,1778577113000,-500.04128954,0.00041361,120]
[422111164,1778577113000,-506.76371342,0.00041361,120]
[422111166,1778577113000,-500.0,0.00041361,120]
[422111170,1778577113000,-500.0,0.00041361,120]
[422111173,1778577113000,-500.0,0.00041361,120]
[422111174,1778577113000,-500.0,0.00041361,120]
[422111172,1778577113000,-500.0,0.00041361,120]
[422111171,1778577113000,-500.0,0.00041361,120]
[422111179,1778577113000,-500.0,0.00041361,120]
[422111176,1778577113000,-207.72935696,0.00041361,120]
[422111180,1778577113000,-424.52802816,0.00041361,120]
[422111175,1778577113000,-500.0,0.00041361,120]
[422111178,1778577113000,-500.0,0.00041361,120]
[422111163,1778577113000,-500.0,0.00041361,120]
[422111204,1778577113000,-609.10051973,0.00041361,120]
[422111198,1778577113000,-500.0,0.00041361,120]
[422111210,1778577113000,-500.0,0.00041361,120]
[422111243,1778577113000,-519.99963365,0.00041361,120]
[422111241,1778577113000,-500.0,0.00041361,120]
[422111242,1778577113000,-577.97953372,0.00041361,120]
[422111244,1778577113000,-270.09135824,0.00041361,120]
[422111245,1778577113000,-577.57891354,0.00041361,120]
[422111246,1778577113000,-507.88110584,0.00041361,120]
[422111247,1778577113000,-200.62655509,0.00041361,120]
[422111248,1778577113000,-345.34525886,0.00041361,120]
[422111249,1778577113000,-500.0,0.00041361,120]
[422111250,1778577113000,-549.59433501,0.00041361,120]
[422111251,1778577113000,-500.0,0.00041361,120]
[422111252,1778577113000,-526.00935311,0.00041361,120]
[422111254,1778577113000,-318.71308443,0.00041361,120]
[422111256,1778577113000,-500.0,0.00041361,120]
[422111255,1778577113000,-500.0,0.00041361,120]
[422111253,1778577113000,-500.0,0.00041361,120]
[422111258,1778577113000,-500.0,0.00041361,120]
[422111257,1778577113000,-500.0,0.00041361,120]
[422111259,1778577113000,-500.0,0.00041361,120]
[422111260,1778577113000,-300.11029734,0.00041361,120]
[422111261,1778577113000,-553.38314886,0.00041361,120]
[422111262,1778577113000,-519.52668961,0.00041361,120]
[422111264,1778577113000,-500.0,0.00041361,120]
[422111265,1778577113000,-500.0,0.00041361,120]
[422111206,1778577113000,-189.85596343,0.00041361,120]
[422111238,1778577113000,-515.40672397,0.00041361,120]
[422111240,1778577113000,-154.60582477,0.00041361,120]
[422111263,1778577113000,-500.0,0.00041361,120]
[422111236,1778577113000,-500.0,0.00041361,120]
[422111239,1778577113000,-474.72107101,0.00041361,120]
[422111209,1778577113000,-362.96128845,0.00041361,120]
[422111208,1778577113000,-517.90161743,0.00041361,120]
[422111207,1778577113000,-613.82588656,0.00041361,120]
[422111216,1778577113000,-231.87041817,0.00041361,120]
[422111218,1778577113000,-264.80210052,0.00041361,120]
[422111220,1778577113000,-547.12218048,0.00041361,120]
[422111221,1778577113000,-403.34478148,0.00041361,120]
[422111219,1778577113000,-500.0,0.00041361,120]
[422111225,1778577113000,-470.19185425,0.00041361,120]
[422111217,1778577113000,-500.0,0.00041361,120]
[422111223,1778577113000,-500.0,0.00041361,120]
[422111205,1778577113000,-316.39926434,0.00041361,120]
[422111222,1778577113000,-500.0,0.00041361,120]
[422111227,1778577113000,-512.66407337,0.00041361,120]
[422111234,1778577113000,-509.91279218,0.00041361,120]
[422111235,1778577113000,-198.76315082,0.00041361,120]
[422111231,1778577113000,-544.16565837,0.00041361,120]
[422111232,1778577113000,-152.79968508,0.00041361,120]
[422111233,1778577113000,-516.47162697,0.00041361,120]
[422111228,1778577113000,-566.35085303,0.00041361,120]
[422111237,1778577113000,-536.84234683,0.00041361,120]
[422111229,1778577113000,-500.0,0.00041361,120]
[422111226,1778577113000,-530.39014373,0.00041361,120]
[422111224,1778577113000,-500.0,0.00041361,120]
[422111230,1778577113000,-210.55264291,0.00041361,120]
[422111293,1778577114000,-500.0,0.00041361,120]
[422111301,1778577114000,-222.26443154,0.00041361,120]
[422111296,1778577114000,-287.21567743,0.00041361,120]
[422111298,1778577114000,-379.45879513,0.00041361,120]
[422111297,1778577114000,-500.0,0.00041361,120]
[422111294,1778577114000,-500.0,0.00041361,120]
[422111299,1778577114000,-167.95465634,0.00041361,120]
[422111304,1778577114000,-500.0,0.00041361,120]
[422111308,1778577114000,-500.0,0.00041361,120]
[422111290,1778577114000,-500.0,0.00041361,120]
[422111303,1778577114000,-541.42723178,0.00041361,120]
[422111305,1778577114000,-500.0,0.00041361,120]
[422111306,1778577114000,-500.0,0.00041361,120]
[422111302,1778577114000,-208.64086344,0.00041361,120]
[422111309,1778577114000,-215.40126846,0.00041361,120]
[422111310,1778577114000,-500.0,0.00041361,120]
[422111311,1778577114000,-506.72705624,0.00041361,120]
[422111307,1778577114000,-500.0,0.00041361,120]
[422111314,1778577114000,-500.0,0.00041361,120]
[422111313,1778577114000,-500.0,0.00041361,120]
[422111291,1778577114000,-500.0,0.00041361,120]
[422111312,1778577114000,-504.47573367,0.00041361,120]
[422111300,1778577114000,-500.0,0.00041361,120]
[422111289,1778577114000,-500.0,0.00041361,120]
[422111283,1778577114000,-189.59032952,0.00041361,120]
[422111292,1778577114000,-500.0,0.00041361,120]
[422111317,1778577114000,-500.0,0.00041361,120]
[422111271,1778577114000,-205.07141064,0.00041361,120]
[422111270,1778577114000,-603.17884644,0.00041361,120]
[422111267,1778577114000,-258.25361573,0.00041361,120]
[422111268,1778577114000,-500.0,0.00041361,120]
[422111266,1778577114000,-634.22781945,0.00041361,120]
[422111269,1778577114000,-527.49917645,0.00041361,120]
[422111272,1778577114000,-500.0,0.00041361,120]
[422111279,1778577114000,-500.0,0.00041361,120]
[422111273,1778577114000,-500.0,0.00041361,120]
[422111276,1778577114000,-500.0,0.00041361,120]
[422111277,1778577114000,-500.0,0.00041361,120]
[422111275,1778577114000,-500.0,0.00041361,120]
[422111274,1778577114000,-500.0,0.00041361,120]
[422111278,1778577114000,-500.0,0.00041361,120]
[422111282,1778577114000,-359.32098777,0.00041361,120]
[422111284,1778577114000,-500.0,0.00041361,120]
[422111280,1778577114000,-526.08523743,0.00041361,120]
[422111281,1778577114000,-228.8116582,0.00041361,120]
[422111285,1778577114000,-500.0,0.00041361,120]
[422111287,1778577114000,-463.18416296,0.00041361,120]
[422111288,1778577114000,-500.0,0.00041361,120]
[422111295,1778577114000,-500.0,0.00041361,120]
[422111286,1778577114000,-500.0,0.00041361,120]
[422111315,1778577114000,-441.92292731,0.00041361,120]
[422111316,1778577114000,-500.0,0.00041361,120]
[422111324,1778577114000,-500.0,0.00041361,120]
[422111343,1778577114000,-320.10993531,0.00041361,120]
[422111348,1778577114000,-205.16196136,0.00041361,120]
[422111349,1778577114000,-260.17415051,0.00041361,120]
[422111350,1778577114000,-522.50353543,0.00041361,120]
[422111351,1778577114000,-500.0,0.00041361,120]
[422111352,1778577114000,-500.0,0.00041361,120]
[422111354,1778577114000,-266.59389349,0.00041361,120]
[422111355,1778577114000,-1461.46,0.00041361,120]
[422111353,1778577114000,-1461.46,0.00041361,120]
[422111357,1778577114000,-284.43908853,0.00041361,120]
[422111356,1778577114000,-1461.46,0.00041361,120]
[422111358,1778577114000,-1461.46,0.00041361,120]
[422111360,1778577114000,-1461.46,0.00041361,120]
[422111364,1778577114000,-500.0,0.00041361,120]
[422111361,1778577114000,-1461.46,0.00041361,120]
[422111363,1778577114000,-1461.46,0.00041361,120]
[422111365,1778577114000,-1461.46,0.00041361,120]
[422111362,1778577114000,-1461.46,0.00041361,120]
[422111367,1778577114000,-1461.46,0.00041361,120]
[422111366,1778577114000,-630.95828152,0.00041361,120]
[422111369,1778577114000,-1461.46,0.00041361,120]
[422111368,1778577114000,-1461.46,0.00041361,120]
[422111323,1778577114000,-500.0,0.00041361,120]
[422111344,1778577114000,-500.0,0.00041361,120]
[422111345,1778577114000,-227.01031372,0.00041361,120]
[422111359,1778577114000,-1461.46,0.00041361,120]
[422111341,1778577114000,-271.97881323,0.00041361,120]
[422111322,1778577114000,-583.58727251,0.00041361,120]
[422111346,1778577114000,-500.0,0.00041361,120]
[422111319,1778577114000,-527.35516115,0.00041361,120]
[422111318,1778577114000,-500.0,0.00041361,120]
[422111321,1778577114000,-500.0,0.00041361,120]
[422111320,1778577114000,-500.0,0.00041361,120]
[422111330,1778577114000,-319.56224962,0.00041361,120]
[422111325,1778577114000,-505.93132938,0.00041361,120]
[422111328,1778577114000,-511.70325668,0.00041361,120]
[422111335,1778577114000,-500.0,0.00041361,120]
[422111334,1778577114000,-500.0,0.00041361,120]
[422111326,1778577114000,-577.59587336,0.00041361,120]
[422111347,1778577114000,-152.72228113,0.00041361,120]
[422111329,1778577114000,-500.0,0.00041361,120]
[422111327,1778577114000,-500.0,0.00041361,120]
[422111333,1778577114000,-500.0,0.00041361,120]
[422111332,1778577114000,-536.99808027,0.00041361,120]
[422111337,1778577114000,-500.0,0.00041361,120]
[422111336,1778577114000,-508.1025453,0.00041361,120]
[422111342,1778577114000,-500.0,0.00041361,120]
[422111338,1778577114000,-518.97446276,0.00041361,120]
[422111340,1778577114000,-353.37592818,0.00041361,120]
[422111331,1778577114000,-500.0,0.00041361,120]
[422111339,1778577114000,-182.70302042,0.00041361,120]
[422111406,1778577115000,-500.0,0.00041361,120]
[422111409,1778577115000,-500.0,0.00041361,120]
[422111403,1778577115000,-1461.6847415,0.00041361,120]
[422111405,1778577115000,-562.82164905,0.00041361,120]
[422111411,1778577115000,-544.82746806,0.00041361,120]
[422111407,1778577115000,-500.0,0.00041361,120]
[422111413,1778577115000,-500.0,0.00041361,120]
[422111410,1778577115000,-175.7735091,0.00041361,120]
[422111402,1778577115000,-500.0,0.00041361,120]
[422111414,1778577115000,-576.34066041,0.00041361,120]
[422111408,1778577115000,-324.66056873,0.00041361,120]
[422111404,1778577115000,-500.0,0.00041361,120]
[422111412,1778577115000,-196.11737399,0.00041361,120]
[422111422,1778577115000,-500.0,0.00041361,120]
[422111425,1778577115000,-500.0,0.00041361,120]
[422111427,1778577115000,-316.96824766,0.00041361,120]
[422111417,1778577115000,-332.42664635,0.00041361,120]
[422111419,1778577115000,-537.32284977,0.00041361,120]
[422111415,1778577115000,-268.88862712,0.00041361,120]
[422111418,1778577115000,-500.0,0.00041361,120]
[422111421,1778577115000,-514.6188748,0.00041361,120]
[422111424,1778577115000,-310.92120928,0.00041361,120]
[422111426,1778577115000,-500.0,0.00041361,120]
[422111423,1778577115000,-500.0,0.00041361,120]
[422111429,1778577115000,-500.0,0.00041361,120]
[422111439,1778577115000,-189.95724225,0.00041361,120]
[422111399,1778577115000,-500.0,0.00041361,120]
[422111416,1778577115000,-500.0,0.00041361,120]
[422111400,1778577115000,-1461.46,0.00041361,120]
[422111373,1778577115000,-500.0,0.00041361,120]
[422111397,1778577115000,-187.33948249,0.00041361,120]
[422111437,1778577115000,-500.0,0.00041361,120]
[422111370,1778577115000,-507.1270385,0.00041361,120]
[422111374,1778577115000,-1461.46,0.00041361,120]
[422111376,1778577115000,-500.0,0.00041361,120]